[Event "Late-Titled-Tuesday-Blitz-April-02-2024"]
[Site "Chess.com"]
[Date "2024.04.02"]
[Round "6"]
[White "Oleksandr_Bortnyk"]
[Black "Kacparov"]
[Result "1-0"]
[WhiteElo "3055"]
[BlackElo "2933"]
[TimeControl "180+1"]
[EndTime "15:03:05 PDT"]
[Termination "Oleksandr_Bortnyk won by resignation"]

1. e4 {[%clk 0:02:53.2]} 1... c5 {[%clk 0:03:00.2]} 2. Be2 {[%clk 0:02:53]} 2...
Nc6 {[%clk 0:03:00.3]} 3. d3 {[%clk 0:02:53.5]} 3... g6 {[%clk 0:03:00.4]} 4. f4
{[%clk 0:02:54.3]} 4... Bg7 {[%clk 0:03:00.3]} 5. Nf3 {[%clk 0:02:55]} 5... d6
{[%clk 0:02:59.3]} 6. c3 {[%clk 0:02:55.1]} 6... Nh6 {[%clk 0:02:55.3]} 7. Be3
{[%clk 0:02:53.6]} 7... f5 {[%clk 0:02:55]} 8. Nbd2 {[%clk 0:02:46.1]} 8... b6
{[%clk 0:02:52.3]} 9. Ng5 {[%clk 0:02:28.8]} 9... e6 {[%clk 0:02:48.1]} 10. Qa4
{[%clk 0:02:21.9]} 10... Qc7 {[%clk 0:02:37.8]} 11. d4 {[%clk 0:02:19.6]} 11...
O-O {[%clk 0:02:32.6]} 12. e5 {[%clk 0:02:13.8]} 12... dxe5 {[%clk 0:02:24.8]}
13. dxe5 {[%clk 0:02:11.5]} 13... a6 {[%clk 0:02:11.8]} 14. O-O {[%clk
0:02:06.1]} 14... Rb8 {[%clk 0:02:07.9]} 15. Qb3 {[%clk 0:02:03.8]} 15... Na5
{[%clk 0:02:00.7]} 16. Qa3 {[%clk 0:02:04.2]} 16... Nc6 {[%clk 0:01:47.7]} 17.
Nc4 {[%clk 0:01:56.5]} 17... Rd8 {[%clk 0:01:31.6]} 18. Nd6 {[%clk 0:01:51.7]}
18... Bd7 {[%clk 0:01:24.3]} 19. Qxa6 {[%clk 0:01:49.1]} 19... Bf8 {[%clk
0:01:08.3]} 20. Rfd1 {[%clk 0:01:41]} 20... Ne7 {[%clk 0:00:55.9]} 21. Bc4
{[%clk 0:01:35.6]} 21... Nd5 {[%clk 0:00:55.8]} 22. Bxd5 {[%clk 0:01:01]} 22...
exd5 {[%clk 0:00:55.6]} 23. Rxd5 {[%clk 0:01:01.9]} 23... Bc6 {[%clk 0:00:31.8]}
24. Qc4 {[%clk 0:00:42.7]} 24... b5 {[%clk 0:00:32.1]} 25. Qxc5 {[%clk 0:00:42]}
25... Rd7 {[%clk 0:00:20.3]} 26. Ne6 {[%clk 0:00:36.7]} 26... Bxd6 {[%clk
0:00:19]} 27. Rxd6 {[%clk 0:00:31]} 27... Qb7 {[%clk 0:00:13.5]} 28. Qxc6 {[%clk
0:00:28]} 1-0

[Event "Late-Titled-Tuesday-Blitz-April-02-2024"]
[Site "Chess.com"]
[Date "2024.04.02"]
[Round "6"]
[White "1g60-1"]
[Black "CURRUTACO59"]
[Result "1-0"]
[WhiteElo "2400"]
[BlackElo "2257"]
[TimeControl "180+1"]
[EndTime "15:03:12 PDT"]
[Termination "1g60-1 won on time"]

1. e4 {[%clk 0:03:00.9]} 1... e5 {[%clk 0:02:58.3]} 2. Nf3 {[%clk 0:03:01.2]}
2... Nc6 {[%clk 0:02:57.5]} 3. Bb5 {[%clk 0:03:01.4]} 3... Bc5 {[%clk
0:02:57.4]} 4. d3 {[%clk 0:03:01]} 4... Nd4 {[%clk 0:02:51.2]} 5. Nxd4 {[%clk
0:03:00.5]} 5... Bxd4 {[%clk 0:02:50.4]} 6. O-O {[%clk 0:03:00.5]} 6... c6
{[%clk 0:02:43.4]} 7. Bc4 {[%clk 0:02:59.7]} 7... Nf6 {[%clk 0:02:40.1]} 8. c3
{[%clk 0:02:58.7]} 8... Bb6 {[%clk 0:02:39.6]} 9. Bg5 {[%clk 0:02:44.1]} 9... h6
{[%clk 0:02:38.9]} 10. Bh4 {[%clk 0:02:44.5]} 10... d6 {[%clk 0:02:31]} 11. d4
{[%clk 0:02:38.9]} 11... Qe7 {[%clk 0:02:21.2]} 12. dxe5 {[%clk 0:02:34.9]}
12... dxe5 {[%clk 0:02:20.9]} 13. Nd2 {[%clk 0:02:31.8]} 13... g5 {[%clk
0:02:20.3]} 14. Bg3 {[%clk 0:02:31.8]} 14... h5 {[%clk 0:02:17.3]} 15. Nf3
{[%clk 0:02:12.5]} 15... Bg4 {[%clk 0:01:43.7]} 16. h3 {[%clk 0:02:02.8]} 16...
h4 {[%clk 0:01:10.3]} 17. Bh2 {[%clk 0:01:57]} 17... Bh5 {[%clk 0:00:56.7]} 18.
Be2 {[%clk 0:01:46.5]} 18... Nd7 {[%clk 0:00:39.7]} 19. Nd2 {[%clk 0:01:25.4]}
19... Bxe2 {[%clk 0:00:30.8]} 20. Qxe2 {[%clk 0:01:26.3]} 20... O-O-O {[%clk
0:00:20.5]} 21. a4 {[%clk 0:01:24.9]} 21... Nf6 {[%clk 0:00:14.3]} 22. a5 {[%clk
0:01:21.1]} 22... Bc7 {[%clk 0:00:13]} 23. a6 {[%clk 0:01:21.4]} 23... b6 {[%clk
0:00:12.1]} 24. Rfd1 {[%clk 0:01:08.7]} 24... Nh5 {[%clk 0:00:11.2]} 25. Qc4
{[%clk 0:01:04.7]} 25... Qf6 {[%clk 0:00:05.2]} 26. Nf3 {[%clk 0:00:53.5]} 26...
Nf4 {[%clk 0:00:04.5]} 27. Bxf4 {[%clk 0:00:52.5]} 27... gxf4 {[%clk 0:00:04.1]}
28. Kh1 {[%clk 0:00:47.8]} 28... Rhg8 {[%clk 0:00:01.7]} 29. Nh2 {[%clk
0:00:37.5]} 1-0

[Event "Late-Titled-Tuesday-Blitz-April-02-2024"]
[Site "Chess.com"]
[Date "2024.04.02"]
[Round "6"]
[White "ozates"]
[Black "GMG"]
[Result "0-1"]
[WhiteElo "2558"]
[BlackElo "2773"]
[TimeControl "180+1"]
[EndTime "15:03:13 PDT"]
[Termination "GMG won by resignation"]

1. e4 {[%clk 0:02:58.1]} 1... c6 {[%clk 0:03:00.4]} 2. Nf3 {[%clk 0:02:57.3]}
2... d5 {[%clk 0:03:00.9]} 3. d3 {[%clk 0:02:58.2]} 3... g6 {[%clk 0:02:59.7]}
4. Nbd2 {[%clk 0:02:57.6]} 4... Bg7 {[%clk 0:02:59.6]} 5. g3 {[%clk 0:02:56.4]}
5... e5 {[%clk 0:02:58]} 6. Bg2 {[%clk 0:02:55.8]} 6... Ne7 {[%clk 0:02:58.1]}
7. O-O {[%clk 0:02:55.2]} 7... O-O {[%clk 0:02:57.6]} 8. Re1 {[%clk 0:02:52.2]}
8... d4 {[%clk 0:02:55.1]} 9. Nc4 {[%clk 0:02:52.1]} 9... f6 {[%clk 0:02:48.3]}
10. a4 {[%clk 0:02:50.7]} 10... Be6 {[%clk 0:02:41.1]} 11. c3 {[%clk 0:02:48.7]}
11... c5 {[%clk 0:02:39.4]} 12. cxd4 {[%clk 0:02:48.6]} 12... cxd4 {[%clk
0:02:38.3]} 13. b4 {[%clk 0:02:47.7]} 13... Na6 {[%clk 0:02:05.6]} 14. b5 {[%clk
0:02:46.4]} 14... Nc5 {[%clk 0:02:05]} 15. Ba3 {[%clk 0:02:39.4]} 15... Rc8
{[%clk 0:02:02.7]} 16. Bxc5 {[%clk 0:02:36.9]} 16... Rxc5 {[%clk 0:02:02.4]} 17.
Nfd2 {[%clk 0:02:37.6]} 17... Qd7 {[%clk 0:01:55.6]} 18. f4 {[%clk 0:02:35.9]}
18... exf4 {[%clk 0:01:44.6]} 19. gxf4 {[%clk 0:02:35.6]} 19... b6 {[%clk
0:01:31.7]} 20. Qb3 {[%clk 0:02:34.6]} 20... Bh6 {[%clk 0:01:28.6]} 21. Rf1
{[%clk 0:02:33.7]} 21... Kh8 {[%clk 0:01:21.5]} 22. Qb2 {[%clk 0:02:31.4]} 22...
Rh5 {[%clk 0:01:13]} 23. Nb3 {[%clk 0:02:26.1]} 23... Rd8 {[%clk 0:01:09.3]} 24.
e5 {[%clk 0:02:02.7]} 24... Bxc4 {[%clk 0:01:02.9]} 25. dxc4 {[%clk 0:02:03.3]}
25... fxe5 {[%clk 0:01:02.2]} 26. fxe5 {[%clk 0:02:03.9]} 26... Be3+ {[%clk
0:01:02]} 27. Kh1 {[%clk 0:02:03.4]} 27... Qe6 {[%clk 0:00:58.6]} 28. Nd2 {[%clk
0:01:45.1]} 28... Nf5 {[%clk 0:00:52.4]} 29. Ne4 {[%clk 0:01:39.6]} 29... Qxe5
{[%clk 0:00:50.5]} 30. Bf3 {[%clk 0:01:31.1]} 30... Rh4 {[%clk 0:00:50.2]} 31.
Qg2 {[%clk 0:01:28.6]} 31... Re8 {[%clk 0:00:46.3]} 32. a5 {[%clk 0:00:47.7]}
32... Bf4 {[%clk 0:00:45]} 33. h3 {[%clk 0:00:45.4]} 33... Ne3 {[%clk
0:00:42.3]} 34. Rae1 {[%clk 0:00:26.8]} 34... Nxg2 {[%clk 0:00:40.7]} 35. Bxg2
{[%clk 0:00:27.1]} 35... Be3 {[%clk 0:00:39.5]} 36. Nd2 {[%clk 0:00:24.6]} 36...
Rf4 {[%clk 0:00:38.1]} 0-1

[Event "Late-Titled-Tuesday-Blitz-April-02-2024"]
[Site "Chess.com"]
[Date "2024.04.02"]
[Round "6"]
[White "JoakimVonAnd"]
[Black "ImportedItalianMaple"]
[Result "1-0"]
[WhiteElo "2701"]
[BlackElo "2528"]
[TimeControl "180+1"]
[EndTime "15:03:15 PDT"]
[Termination "JoakimVonAnd won on time"]

1. Nf3 {[%clk 0:02:57.9]} 1... g6 {[%clk 0:02:59.9]} 2. g3 {[%clk 0:02:57.3]}
2... Bg7 {[%clk 0:03:00.2]} 3. Bg2 {[%clk 0:02:57.9]} 3... d5 {[%clk 0:02:58]}
4. c4 {[%clk 0:02:55.9]} 4... d4 {[%clk 0:02:54.7]} 5. d3 {[%clk 0:02:52.8]}
5... e5 {[%clk 0:02:54.2]} 6. b4 {[%clk 0:02:52.8]} 6... a5 {[%clk 0:02:51.3]}
7. b5 {[%clk 0:02:48.2]} 7... Ne7 {[%clk 0:02:50]} 8. O-O {[%clk 0:02:46.4]}
8... O-O {[%clk 0:02:50]} 9. a4 {[%clk 0:02:46.1]} 9... Re8 {[%clk 0:02:46.4]}
10. Ba3 {[%clk 0:02:44.7]} 10... h6 {[%clk 0:02:19.9]} 11. Ra2 {[%clk
0:02:44.4]} 11... Be6 {[%clk 0:02:19.8]} 12. Re1 {[%clk 0:02:37.7]} 12... Nd7
{[%clk 0:02:17.8]} 13. e3 {[%clk 0:02:26]} 13... c5 {[%clk 0:02:17.6]} 14. bxc6
{[%clk 0:02:22.9]} 14... Nxc6 {[%clk 0:02:17]} 15. exd4 {[%clk 0:02:17.1]} 15...
exd4 {[%clk 0:02:17]} 16. Rb2 {[%clk 0:02:13.3]} 16... Qc8 {[%clk 0:02:08.2]}
17. Nbd2 {[%clk 0:02:12.2]} 17... Nde5 {[%clk 0:02:03.2]} 18. Ne4 {[%clk
0:02:09.8]} 18... Bg4 {[%clk 0:01:33.8]} 19. Nxe5 {[%clk 0:01:02.6]} 19... Bxd1
{[%clk 0:01:28.2]} 20. Nd6 {[%clk 0:01:02.6]} 20... Qe6 {[%clk 0:00:51.6]} 21.
Bd5 {[%clk 0:00:59.8]} 21... Nxe5 {[%clk 0:00:37.5]} 22. Bxe6 {[%clk 0:00:59.4]}
22... Nf3+ {[%clk 0:00:37.3]} 23. Kf1 {[%clk 0:00:57.6]} 23... Nxe1 {[%clk
0:00:25.4]} 24. Bxf7+ {[%clk 0:00:55.6]} 24... Kh7 {[%clk 0:00:20.7]} 25. Bxe8
{[%clk 0:00:52]} 25... Nf3 {[%clk 0:00:14.6]} 26. Rxb7 {[%clk 0:00:50]} 26...
Nxh2+ {[%clk 0:00:13.3]} 27. Ke1 {[%clk 0:00:45]} 27... Bf3 {[%clk 0:00:13.4]}
28. Rf7 {[%clk 0:00:41.7]} 28... Bg4 {[%clk 0:00:10.8]} 29. Bc6 {[%clk
0:00:38.2]} 29... Nf3+ {[%clk 0:00:11.3]} 30. Bxf3 {[%clk 0:00:37.9]} 1-0

[Event "Late-Titled-Tuesday-Blitz-April-02-2024"]
[Site "Chess.com"]
[Date "2024.04.02"]
[Round "6"]
[White "elcala"]
[Black "trriinu"]
[Result "0-1"]
[WhiteElo "1802"]
[BlackElo "2277"]
[TimeControl "180+1"]
[EndTime "15:03:19 PDT"]
[Termination "trriinu won by resignation"]

1. d4 {[%clk 0:02:58.4]} 1... d5 {[%clk 0:02:57.2]} 2. Nf3 {[%clk 0:02:58.9]}
2... Nf6 {[%clk 0:02:49.3]} 3. Bf4 {[%clk 0:02:59.3]} 3... e6 {[%clk 0:02:41.4]}
4. e3 {[%clk 0:02:59.7]} 4... Bd6 {[%clk 0:02:38.3]} 5. Bg3 {[%clk 0:02:59.1]}
5... O-O {[%clk 0:02:24.9]} 6. Nbd2 {[%clk 0:02:56]} 6... c5 {[%clk 0:02:16.3]}
7. c3 {[%clk 0:02:54.5]} 7... Nc6 {[%clk 0:02:15.1]} 8. Bd3 {[%clk 0:02:48.6]}
8... a6 {[%clk 0:02:06.5]} 9. Ne5 {[%clk 0:02:41.8]} 9... Bxe5 {[%clk
0:02:03.9]} 10. dxe5 {[%clk 0:02:41.5]} 10... Nd7 {[%clk 0:02:01]} 11. f4 {[%clk
0:02:41.3]} 11... f6 {[%clk 0:01:55.5]} 12. exf6 {[%clk 0:02:39.7]} 12... Nxf6
{[%clk 0:01:53.9]} 13. O-O {[%clk 0:02:36.2]} 13... c4 {[%clk 0:01:54.1]} 14.
Bb1 {[%clk 0:02:35.3]} 14... Qb6 {[%clk 0:01:54.5]} 15. Bf2 {[%clk 0:02:21.6]}
15... Qxb2 {[%clk 0:01:54.1]} 16. Qc1 {[%clk 0:02:12.7]} 16... Qxc1 {[%clk
0:01:50]} 17. Rxc1 {[%clk 0:02:10.4]} 17... e5 {[%clk 0:01:49.4]} 18. g3 {[%clk
0:02:03.9]} 18... Ng4 {[%clk 0:01:48.6]} 19. Rf1 {[%clk 0:01:52.1]} 19... Be6
{[%clk 0:01:31]} 20. Bc2 {[%clk 0:01:46.6]} 20... Rae8 {[%clk 0:01:28.1]} 21.
Rab1 {[%clk 0:01:38.6]} 21... Bc8 {[%clk 0:01:21.8]} 22. Kg2 {[%clk 0:01:32.4]}
22... exf4 {[%clk 0:01:20.1]} 23. exf4 {[%clk 0:01:32.2]} 23... Re2 {[%clk
0:01:19.1]} 24. Rbd1 {[%clk 0:01:25]} 24... Ne3+ {[%clk 0:01:11]} 25. Kf3 {[%clk
0:01:24.3]} 25... Nxd1 {[%clk 0:01:11.3]} 26. Kxe2 {[%clk 0:01:17]} 26... Nxc3+
{[%clk 0:01:11.3]} 27. Kf3 {[%clk 0:01:10.5]} 27... Nxa2 {[%clk 0:01:10.8]} 28.
Ba4 {[%clk 0:00:54.5]} 28... b5 {[%clk 0:01:09]} 29. Bc2 {[%clk 0:00:53.2]}
29... Nab4 {[%clk 0:01:02.3]} 30. Bb1 {[%clk 0:00:49.5]} 30... c3 {[%clk
0:00:58.1]} 31. Nb3 {[%clk 0:00:29.1]} 31... c2 {[%clk 0:00:57.8]} 32. Bc5
{[%clk 0:00:25.2]} 32... cxb1=Q {[%clk 0:00:52.2]} 33. Rxb1 {[%clk 0:00:24.1]}
33... Re8 {[%clk 0:00:51.2]} 34. Bxb4 {[%clk 0:00:19.7]} 34... Nxb4 {[%clk
0:00:49.6]} 35. Nc5 {[%clk 0:00:18.7]} 35... Nc2 {[%clk 0:00:45.8]} 36. Rb3
{[%clk 0:00:15.6]} 36... Nd4+ {[%clk 0:00:45.9]} 0-1

[Event "Late-Titled-Tuesday-Blitz-April-02-2024"]
[Site "Chess.com"]
[Date "2024.04.02"]
[Round "6"]
[White "JACK_BAU3R"]
[Black "rcmz"]
[Result "0-1"]
[WhiteElo "1872"]
[BlackElo "2200"]
[TimeControl "180+1"]
[EndTime "15:03:25 PDT"]
[Termination "rcmz won on time"]

1. d4 {[%clk 0:02:52.8]} 1... d6 {[%clk 0:01:37.4]} 2. c3 {[%clk 0:02:53.7]}
2... Nd7 {[%clk 0:01:37]} 3. Nf3 {[%clk 0:02:52]} 3... h6 {[%clk 0:01:36.8]} 4.
e4 {[%clk 0:02:48.9]} 4... c6 {[%clk 0:01:36.7]} 5. Bd3 {[%clk 0:02:49.3]} 5...
g5 {[%clk 0:01:35.7]} 6. h3 {[%clk 0:02:48.3]} 6... Bg7 {[%clk 0:01:35.3]} 7.
Nbd2 {[%clk 0:02:43.8]} 7... Nf8 {[%clk 0:01:34.7]} 8. e5 {[%clk 0:02:38.3]}
8... dxe5 {[%clk 0:01:30.9]} 9. Bc4 {[%clk 0:02:12.6]} 9... exd4 {[%clk
0:01:25.5]} 10. cxd4 {[%clk 0:02:13.5]} 10... b5 {[%clk 0:01:12.6]} 11. Bb3
{[%clk 0:02:11.8]} 11... Bxd4 {[%clk 0:01:08.6]} 12. Nxd4 {[%clk 0:02:10.8]}
12... Qxd4 {[%clk 0:01:07.7]} 13. O-O {[%clk 0:01:52.1]} 13... Be6 {[%clk
0:01:07.4]} 14. Re1 {[%clk 0:01:49.4]} 14... Rd8 {[%clk 0:01:05.9]} 15. Qc2
{[%clk 0:01:35.9]} 15... c5 {[%clk 0:00:57.7]} 16. Nf3 {[%clk 0:00:48.8]} 16...
Qd6 {[%clk 0:00:56.7]} 17. Bxe6 {[%clk 0:00:43.9]} 17... Nxe6 {[%clk 0:00:55.3]}
18. Be3 {[%clk 0:00:38.5]} 18... Nd4 {[%clk 0:00:48]} 19. Bxd4 {[%clk
0:00:26.1]} 19... cxd4 {[%clk 0:00:48]} 20. Rad1 {[%clk 0:00:10.7]} 20... d3
{[%clk 0:00:46.8]} 21. Qc3 {[%clk 0:00:10.6]} 21... Nf6 {[%clk 0:00:45.3]} 22.
Re3 {[%clk 0:00:08.2]} 22... O-O {[%clk 0:00:34.5]} 23. Rexd3 {[%clk 0:00:06.4]}
23... Qb6 {[%clk 0:00:34.5]} 24. Ne5 {[%clk 0:00:02.1]} 24... Rxd3 {[%clk
0:00:32.6]} 25. Rxd3 {[%clk 0:00:02]} 25... Qe6 {[%clk 0:00:31.8]} 26. Nf3
{[%clk 0:00:01.6]} 26... Qxa2 {[%clk 0:00:29.9]} 27. h4 {[%clk 0:00:01.2]} 27...
Qb1+ {[%clk 0:00:28.7]} 0-1

[Event "Late-Titled-Tuesday-Blitz-April-02-2024"]
[Site "Chess.com"]
[Date "2024.04.02"]
[Round "6"]
[White "Defend1r"]
[Black "Practical-Play"]
[Result "0-1"]
[WhiteElo "2644"]
[BlackElo "2513"]
[TimeControl "180+1"]
[EndTime "15:03:27 PDT"]
[Termination "Practical-Play won by checkmate"]

1. e4 {[%clk 0:03:00.9]} 1... e5 {[%clk 0:02:57.5]} 2. Nf3 {[%clk 0:03:00.9]}
2... Nc6 {[%clk 0:02:56.8]} 3. Bc4 {[%clk 0:03:01.2]} 3... Nf6 {[%clk
0:02:56.4]} 4. d4 {[%clk 0:03:00.8]} 4... exd4 {[%clk 0:02:55.2]} 5. e5 {[%clk
0:03:01.7]} 5... d5 {[%clk 0:02:54.8]} 6. Bb5 {[%clk 0:03:01.6]} 6... Ne4 {[%clk
0:02:55.1]} 7. Nxd4 {[%clk 0:03:00.3]} 7... Bc5 {[%clk 0:02:55.1]} 8. Be3 {[%clk
0:03:00.8]} 8... O-O {[%clk 0:02:51.6]} 9. Nxc6 {[%clk 0:02:59.8]} 9... bxc6
{[%clk 0:02:51.1]} 10. Bxc5 {[%clk 0:03:00.4]} 10... Qg5 {[%clk 0:01:53.6]} 11.
O-O {[%clk 0:02:07.6]} 11... Bg4 {[%clk 0:01:05]} 12. f3 {[%clk 0:01:54.3]}
12... Bh3 {[%clk 0:01:04.9]} 13. Qe2 {[%clk 0:01:52.7]} 13... Nxc5 {[%clk
0:00:59.9]} 14. Bxc6 {[%clk 0:01:52.6]} 14... Ne6 {[%clk 0:00:59]} 15. Qd2
{[%clk 0:01:09.9]} 15... Nf4 {[%clk 0:00:38.5]} 16. Rf2 {[%clk 0:01:10.4]} 16...
Qxe5 {[%clk 0:00:26.9]} 17. Bxa8 {[%clk 0:01:01.1]} 17... Qxb2 {[%clk
0:00:26.3]} 18. Qxf4 {[%clk 0:00:45.1]} 18... Qxa1 {[%clk 0:00:25.8]} 19. Rf1
{[%clk 0:00:45.7]} 19... Rxa8 {[%clk 0:00:15.2]} 20. gxh3 {[%clk 0:00:43.4]}
20... Qxa2 {[%clk 0:00:15.7]} 21. Qxc7 {[%clk 0:00:41.2]} 21... Qa6 {[%clk
0:00:13.7]} 22. Nd2 {[%clk 0:00:28.7]} 22... h6 {[%clk 0:00:12.4]} 23. Qe5
{[%clk 0:00:25.2]} 23... Rc8 {[%clk 0:00:12.3]} 24. Qxd5 {[%clk 0:00:15.8]}
24... Rxc2 {[%clk 0:00:11.8]} 25. Rf2 {[%clk 0:00:16.3]} 25... Rc1+ {[%clk
0:00:10.8]} 26. Kg2 {[%clk 0:00:15.9]} 26... Qg6+ {[%clk 0:00:10.9]} 27. Qg5
{[%clk 0:00:07.3]} 27... Qxg5# {[%clk 0:00:11.1]} 0-1

[Event "Late-Titled-Tuesday-Blitz-April-02-2024"]
[Site "Chess.com"]
[Date "2024.04.02"]
[Round "6"]
[White "emeli_chess"]
[Black "Alexei_Gubajdullin"]
[Result "0-1"]
[WhiteElo "2426"]
[BlackElo "2625"]
[TimeControl "180+1"]
[EndTime "15:03:28 PDT"]
[Termination "Alexei_Gubajdullin won on time"]

1. d4 {[%clk 0:03:00.9]} 1... Nf6 {[%clk 0:02:59.3]} 2. c4 {[%clk 0:03:01]} 2...
g6 {[%clk 0:02:59.7]} 3. Nc3 {[%clk 0:03:01.2]} 3... Bg7 {[%clk 0:03:00.4]} 4.
e4 {[%clk 0:03:01.3]} 4... d6 {[%clk 0:03:01]} 5. f3 {[%clk 0:03:01.4]} 5... O-O
{[%clk 0:03:01]} 6. Be3 {[%clk 0:03:01.6]} 6... c5 {[%clk 0:03:01.3]} 7. Nge2
{[%clk 0:03:01.3]} 7... Nc6 {[%clk 0:03:00.4]} 8. d5 {[%clk 0:03:00.3]} 8... Ne5
{[%clk 0:03:00.3]} 9. Ng3 {[%clk 0:03:00.5]} 9... e6 {[%clk 0:03:00.6]} 10. Be2
{[%clk 0:03:00.4]} 10... exd5 {[%clk 0:02:59.6]} 11. cxd5 {[%clk 0:02:59.2]}
11... h5 {[%clk 0:02:59.4]} 12. O-O {[%clk 0:02:58.4]} 12... h4 {[%clk
0:02:58.1]} 13. Nh1 {[%clk 0:02:58.5]} 13... a6 {[%clk 0:02:55.7]} 14. a4 {[%clk
0:02:53]} 14... Rb8 {[%clk 0:02:51]} 15. Nf2 {[%clk 0:02:50.6]} 15... Re8 {[%clk
0:02:41.2]} 16. h3 {[%clk 0:02:32]} 16... Nh5 {[%clk 0:02:39.7]} 17. f4 {[%clk
0:02:25.8]} 17... Ng3 {[%clk 0:02:24.8]} 18. fxe5 {[%clk 0:02:22.9]} 18... Nxf1
{[%clk 0:02:25.7]} 19. Qxf1 {[%clk 0:02:13]} 19... Bxe5 {[%clk 0:02:25.7]} 20.
Ng4 {[%clk 0:02:08.1]} 20... Bxg4 {[%clk 0:02:25.6]} 21. Bxg4 {[%clk 0:02:06.1]}
21... b5 {[%clk 0:02:26]} 22. Qf3 {[%clk 0:01:51.6]} 22... b4 {[%clk 0:02:22.2]}
23. Rf1 {[%clk 0:01:51.1]} 23... f5 {[%clk 0:02:15.6]} 24. Nd1 {[%clk
0:01:39.1]} 24... f4 {[%clk 0:02:12.6]} 25. Bxf4 {[%clk 0:01:21.8]} 25... Rf8
{[%clk 0:02:10.7]} 26. Be6+ {[%clk 0:01:21.5]} 26... Kh7 {[%clk 0:02:10.8]} 27.
Qg4 {[%clk 0:01:12]} 27... Qf6 {[%clk 0:02:02.3]} 28. Bxe5 {[%clk 0:00:39.2]}
28... Qxf1+ {[%clk 0:01:55.7]} 29. Kh2 {[%clk 0:00:39.1]} 29... dxe5 {[%clk
0:01:49]} 30. Qxh4+ {[%clk 0:00:39]} 30... Kg7 {[%clk 0:01:48.2]} 31. Qe7+
{[%clk 0:00:29.4]} 31... Kh8 {[%clk 0:01:47.2]} 32. Qh4+ {[%clk 0:00:22.8]}
32... Kg7 {[%clk 0:01:46.7]} 33. Qe7+ {[%clk 0:00:22.8]} 33... Rf7 {[%clk
0:01:45.2]} 34. Bxf7 {[%clk 0:00:22.4]} 34... Qf6 {[%clk 0:01:42.1]} 35. Qxf6+
{[%clk 0:00:15.7]} 35... Kxf6 {[%clk 0:01:41.8]} 36. Be6 {[%clk 0:00:15.5]}
36... c4 {[%clk 0:01:41.4]} 37. Bg4 {[%clk 0:00:11.3]} 37... Ke7 {[%clk
0:01:30.1]} 38. Kg3 {[%clk 0:00:06.8]} 38... Rf8 {[%clk 0:01:29.3]} 39. Be2
{[%clk 0:00:04.1]} 39... Rc8 {[%clk 0:01:24.7]} 40. Ne3 {[%clk 0:00:03.1]} 40...
c3 {[%clk 0:01:22.7]} 41. bxc3 {[%clk 0:00:03.1]} 41... bxc3 {[%clk 0:01:22.8]}
42. Nc2 {[%clk 0:00:02.5]} 42... a5 {[%clk 0:01:20]} 43. Kf2 {[%clk 0:00:02.3]}
43... Rb8 {[%clk 0:01:19.2]} 44. Bb5 {[%clk 0:00:02.2]} 44... Kd6 {[%clk
0:01:16.6]} 45. Ke3 {[%clk 0:00:02]} 45... Rf8 {[%clk 0:01:16.5]} 46. Kd3 {[%clk
0:00:01.9]} 46... Rf2 {[%clk 0:01:16.5]} 47. Kxc3 {[%clk 0:00:01.8]} 47... Rxg2
{[%clk 0:01:16.9]} 48. Ne3 {[%clk 0:00:01.9]} 48... Rg3 {[%clk 0:01:16.8]} 49.
Kd2 {[%clk 0:00:01.9]} 49... Kc5 {[%clk 0:01:15.5]} 0-1

[Event "Late-Titled-Tuesday-Blitz-April-02-2024"]
[Site "Chess.com"]
[Date "2024.04.02"]
[Round "6"]
[White "Blackmind96"]
[Black "sergiochess83"]
[Result "0-1"]
[WhiteElo "2757"]
[BlackElo "2969"]
[TimeControl "180+1"]
[EndTime "15:03:30 PDT"]
[Termination "sergiochess83 won by resignation"]

1. d4 {[%clk 0:02:56.9]} 1... d5 {[%clk 0:02:58.3]} 2. c4 {[%clk 0:02:55.9]}
2... c6 {[%clk 0:02:56.7]} 3. Nf3 {[%clk 0:02:53.3]} 3... Nf6 {[%clk 0:02:56.8]}
4. Nc3 {[%clk 0:02:52.6]} 4... dxc4 {[%clk 0:02:55]} 5. a4 {[%clk 0:02:52.2]}
5... a5 {[%clk 0:02:46.8]} 6. e4 {[%clk 0:02:26.9]} 6... Bg4 {[%clk 0:02:44.8]}
7. Bxc4 {[%clk 0:02:26]} 7... e6 {[%clk 0:02:43.1]} 8. Be3 {[%clk 0:02:24.4]}
8... Bb4 {[%clk 0:02:42.1]} 9. Qd3 {[%clk 0:02:24.2]} 9... Nbd7 {[%clk
0:02:41.4]} 10. Nd2 {[%clk 0:02:19.2]} 10... Bh5 {[%clk 0:02:40.5]} 11. h3
{[%clk 0:02:14.8]} 11... Bg6 {[%clk 0:02:40.4]} 12. O-O {[%clk 0:02:11.4]} 12...
O-O {[%clk 0:02:39.3]} 13. f4 {[%clk 0:02:08.2]} 13... h6 {[%clk 0:01:54.6]} 14.
f5 {[%clk 0:01:53.7]} 14... exf5 {[%clk 0:01:54.3]} 15. e5 {[%clk 0:01:42.2]}
15... Nd5 {[%clk 0:00:32.1]} 16. Nxd5 {[%clk 0:01:42]} 16... cxd5 {[%clk
0:00:32.2]} 17. Bxd5 {[%clk 0:01:42.2]} 17... Nxe5 {[%clk 0:00:27.5]} 18. dxe5
{[%clk 0:01:34.5]} 18... f4 {[%clk 0:00:27.7]} 19. Qb3 {[%clk 0:00:56.5]} 19...
fxe3 {[%clk 0:00:26]} 20. Nf3 {[%clk 0:00:50.1]} 20... e2 {[%clk 0:00:26.5]} 21.
Rfc1 {[%clk 0:00:41.8]} 21... Rc8 {[%clk 0:00:19.8]} 22. e6 {[%clk 0:00:33.4]}
22... Rxc1+ {[%clk 0:00:19.2]} 23. Rxc1 {[%clk 0:00:34.3]} 23... fxe6 {[%clk
0:00:19.8]} 24. Bxe6+ {[%clk 0:00:33.8]} 24... Kh8 {[%clk 0:00:18.2]} 25. Qc4
{[%clk 0:00:33.9]} 25... Qd3 {[%clk 0:00:15.2]} 26. Qg4 {[%clk 0:00:14.8]} 26...
Qe3+ {[%clk 0:00:12.7]} 27. Kh1 {[%clk 0:00:13.7]} 27... Qxc1+ {[%clk
0:00:12.2]} 0-1